Cogmind - Beta 10.2 @@@ ROGUE MODE // 2021.04.11 @ 19:39:25 Player: ChromeKnight Result: Self-destructed Performance ------------- Evolutions (4) 2000 Regions Visited (16) 3200 Robots Destroyed (95) 475 Value Destroyed (5624) 5624 Prototype IDs (28) 560 Alien Tech Used (0) 0 Bonus (3132) 3132 TOTAL SCORE: 14991 Bonus ------- High Alert Combat Kills 30 Follower Combat Kills 329 Entered Garrisons 800 Used RIF Installer 2000 Aligned with FarCom 300 Friendly Fire -327 Cogmind --------- Core Integrity 783/850 Matter 291/300 Energy 100/100 System Corruption 0% Temperature Cool (0) Movement Walking (120) Location -6/Factory Parts ------- > --- POWER (1) -------- (None) > --- PROPULSION (4) --- Carbon-fiber Leg Carbon-fiber Leg > --- UTILITY (8) ------ Improved Weapon Shielding Relay Coupler [NC] (15) Relay Coupler [Swarmer] (21) Relay Coupler [Grunt] (7) Relay Coupler [Sentry] (22) > --- WEAPON (2) ------- Remote Datajack Heavy Pick > --- INVENTORY (4) ---- Improved Cooling System Medium Matter Pod (100) Hacking Suite Relay Coupler [Brawler] (26) Peak State ------------ > --- POWER ------------ Light Angular Momentum Engine > --- PROPULSION ------- Carbon-fiber Leg Carbon-fiber Leg Carbon-fiber Leg Gravmag System > --- UTILITY ---------- Lightpack 2.0 Improved Weapon Shielding Improved Medium Armor Plating Relay Coupler [NC] Relay Coupler [Swarmer] Relay Coupler [Grunt] Relay Coupler [Sentry] > --- WEAPON ----------- Remote Datajack Heavy Pick > --- INVENTORY -------- Improved Cooling System Medium Matter Pod Improved Medium Armor Plating Hacking Suite Hacking Suite Relay Coupler [NC] Relay Coupler [NC] Relay Coupler [Swarmer] Relay Coupler [Swarmer] Relay Coupler [Brawler] Relay Coupler [Duelist] Relay Coupler [Duelist] Relay Coupler [Duelist] Relay Coupler [Sentry] Relay Coupler [Sentry] Relay Coupler [Sentry] Relay Coupler [Demolisher] Relay Coupler [Demolisher] Latent Energy Streamer Guided Plasma Cannon Remote Datajack Remote Datajack Heavy Pick Heavy Pick [Rating: 74] Favorites ----------- Power Improved Deuterium Engine Engine Improved Deuterium Engine Propulsion Aluminum Leg Treads Light Treads Leg Aluminum Leg Hover Unit Gravmag System Utility Lightpack 2.0 Device Experimental Sensor Array Storage Lightpack 2.0 Processor Improved Signal Interpreter Hackware Relay Coupler [NC] Protection Improved Medium Armor Plating Weapon Remote Datajack Energy Gun Arc Projector Energy Cannon Guided Plasma Cannon Ballistic Gun Heavy Assault Rifle Special Weapon Remote Datajack Impact Weapon Power Maul Slashing Weapon Katana Piercing Weapon Spear Build | -11 -10 -9 -9 -9 -8 -8 -8 -8 -8 -7 -7 -7 -7 -7 -7 -6 ------- Run | Scr Mat Mat Min Exi Min Mat Gar Mat Gar Fac Was Fac Gar Fac Gar Fac Slots Evolved 8 | . . 2 . . . 2 . . . 2 . . . . . 2 Power . | . . . . . . . . . . . . . . . . . Propulsion 2 | . . 2 . . . . . . . . . . . . . . Utility 6 | . . . . . . 2 . . . 2 . . . . . 2 Weapon . | . . . . . . . . . . . . . . . . . Parts Attached 157 | 6 1 18 8 1 9 . 11 10 19 10 . 14 5 27 12 6 Power 18 | 1 . 3 1 . 1 . . 5 2 1 . 1 . 3 . . Engine 18 | 1 . 3 1 . 1 . . 5 2 1 . 1 . 3 . . Core . | . . . . . . . . . . . . . . . . . Reactor . | . . . . . . . . . . . . . . . . . Propulsion 47 | 2 . 5 1 . 7 . 5 4 6 3 . 3 . 8 2 1 Treads 2 | . . . . . . . . . . . . . . 2 . . Leg 34 | 2 . 5 1 . 7 . 5 4 6 1 . . . . 2 1 Wheel . | . . . . . . . . . . . . . . . . . Hover 11 | . . . . . . . . . . 2 . 3 . 6 . . Flight . | . . . . . . . . . . . . . . . . . Utility 51 | 1 1 3 3 1 . . 4 1 4 6 . 7 5 5 7 3 Device 13 | . . . 1 . . . . . 1 2 . 4 1 4 . . Storage 3 | 1 1 . . 1 . . . . . . . . . . . . Processor 3 | . . . . . . . 1 1 . 1 . . . . . . Hackware 18 | . . . . . . . . . 3 1 . 3 4 1 6 . Protection 14 | . . 3 2 . . . 3 . . 2 . . . . 1 3 Artifact . | . . . . . . . . . . . . . . . . . Weapon 41 | 2 . 7 3 . 1 . 2 . 7 . . 3 . 11 3 2 Energy Gun 15 | 2 . 1 . . . . . . 3 . . 1 . 6 2 . Energy Cannon 4 | . . . . . . . . . 1 . . 1 . 2 . . Ballistic Gun 10 | . . 6 1 . . . 1 . 1 . . . . . . 1 Ballistic Cannon . | . . . . . . . . . . . . . . . . . Launcher . | . . . . . . . . . . . . . . . . . Special Weapon 7 | . . . . . . . . . 2 . . 1 . 3 1 . Impact Weapon 1 | . . . 1 . . . . . . . . . . . . . Slashing Weapon 2 | . . . . . 1 . 1 . . . . . . . . . Piercing Weapon 2 | . . . 1 . . . . . . . . . . . . 1 Special Melee Weapon . | . . . . . . . . . . . . . . . . . Unidentified Prototypes 3 | . . . 1 . . . . . . . . 1 . . . 1 Parts Lost 41 | . 2 6 . . 3 . 5 6 4 . . 1 . 7 2 5 Power 4 | . . 1 . . 1 . . 1 . . . . . . . 1 Propulsion 19 | . . 3 . . 2 . 3 4 . . . 1 . 4 . 2 Utility 6 | . . 1 . . . . 1 1 . . . . . . 1 2 Weapon 12 | . 2 1 . . . . 1 . 4 . . . . 3 1 . Highest Loss Streak 5 | . 2 2 . . 2 . 4 3 1 . . 1 . 4 1 5 Average Slot Usage (%) 84 | . 85 78 100 93 86 72 86 84 86 85 69 79 84 84 78 86 Engine 8 | . 14 10 11 11 10 9 9 8 9 7 7 7 7 7 7 5 Treads 1 | . . . . . . . . . . . . . . 5 3 . Leg 22 | . 28 31 44 44 43 36 34 30 36 27 . . . . 9 16 Hover 6 | . . . . . . . . . . 1 15 20 23 18 7 5 Device 3 | . . . . . . . . . 7 10 7 7 7 6 . . Storage 8 | . 14 11 11 11 11 9 9 9 9 7 7 7 7 7 7 6 Processor 4 | . . . . . . . 6 15 1 4 7 7 7 7 1 . Hackware 8 | . . . . . . . . . 7 7 15 14 15 15 24 26 Protection 2 | . . 5 11 5 . . 8 2 . 2 . . . . . 11 Energy Gun 2 | . 28 3 . . . . . . 1 . . . 7 7 5 . Energy Cannon 2 | . . . . . . . . . 6 6 . 4 . 2 1 . Ballistic Gun 1 | . . 16 11 . . . . . 1 . . . . . . . Special Weapon 3 | . . . . . . . . . 5 7 7 7 7 4 6 6 Impact Weapon 1 | . . . 5 11 4 . . . . . . . . . . . Slashing Weapon 3 | . . . . . 6 9 15 18 . . . . . . . . Piercing Weapon 1 | . . . 5 11 11 9 1 . . . . . . . . 5 Naked Turns . | . . . . . . . . . . . . . . . . . Heaviest Build 40 | 11 23 39 40 38 20 16 26 25 29 36 19 29 23 30 30 29 Greatest Support 55 | 20 20 40 45 45 55 53 53 45 45 53 22 33 28 44 40 45 Greatest Overweight (x) 7 | 3 1 1 . . . . . 3 . 1 . 1 . 7 1 . Average Overweight (x) . | . . . . . . . . . . . . . . . . . Largest Inventory Capacity 24 | 6 12 10 10 24 24 24 24 24 24 24 24 24 24 24 24 24 Average Capacity 21 | 5 7 10 10 17 24 24 24 24 24 24 24 24 24 24 24 24 Most Carried 24 | 2 1 10 10 13 17 17 24 24 24 24 24 24 24 24 24 24 Average Carried 19 | . 1 2 9 11 16 17 19 23 22 23 24 23 23 23 22 23 Final Capacity 24 | 6 10 10 10 24 24 24 24 24 24 24 24 24 24 24 24 4 Final Carried 24 | 1 1 10 10 13 17 17 24 24 24 24 24 23 24 23 24 4 Class Distribution -------------------- 63% | Bothacker-Mutant 23% | Scavenger-Mutant 6% | Botlord-Mutant 5% | Mutant Dominant Class ---------------- Mutant | -10/Materials Mutant | -9/Materials Scavenger-Mutant | -9/Mines Scavenger-Mutant | -9/Exiles Scavenger-Mutant | -8/Mines Scavenger-Mutant | -8/Materials Scavenger-Mutant | -8/Garrison Bothacker-Mutant | -8/Materials Bothacker-Mutant | -8/Garrison Bothacker-Mutant | -7/Factory Bothacker-Mutant | -7/Waste Bothacker-Mutant | -7/Factory Bothacker-Mutant | -7/Garrison Bothacker-Mutant | -7/Factory Bothacker-Mutant | -7/Garrison Botlord-Mutant | -6/Factory Resources | -11 -10 -9 -9 -9 -8 -8 -8 -8 -8 -7 -7 -7 -7 -7 -7 -6 ----------- Run | Scr Mat Mat Min Exi Min Mat Gar Mat Gar Fac Was Fac Gar Fac Gar Fac Matter Collected 2573 | 190 31 450 113 . 90 . 167 85 292 40 85 223 76 352 326 53 Remotely . | . . . . . . . . . . . . . . . . . Salvage Created 3837 | . 31 652 97 . 412 . 352 499 624 40 . 327 30 625 95 53 Parts 202 | . 4 46 2 . 25 . 27 22 24 1 . 12 1 30 6 2 Haulers Intercepted . | . . . . . . . . . . . . . . . . . Recyclers Shooed 2 | . . 1 . . . . . . . . . . . 1 . . Parts Field Recycled . | . . . . . . . . . . . . . . . . . Retrieved Matter . | . . . . . . . . . . . . . . . . . Parts Self-Destructed . | . . . . . . . . . . . . . . . . . Prevented . | . . . . . . . . . . . . . . . . . Kills | -11 -10 -9 -9 -9 -8 -8 -8 -8 -8 -7 -7 -7 -7 -7 -7 -6 ------- Run | Scr Mat Mat Min Exi Min Mat Gar Mat Gar Fac Was Fac Gar Fac Gar Fac Combat Hostiles Destroyed 81 | . 2 17 1 . 8 . 11 8 14 1 . 6 1 9 2 1 Melee 29 | . . . . . 8 . 10 8 2 . . . . . . 1 Guns 27 | . 2 17 1 . . . 1 . 4 . . . 1 . 1 . Cannons 18 | . . . . . . . . . 8 1 . 5 . 3 1 . AOE 3 | . . . . . . . . . . . . . . 3 . . Classes Destroyed 12 | . 1 3 . . 3 . 1 2 . 1 . . . 1 . . Builder 1 | . . 1 . . . . . . . . . . . . . . Tunneler 2 | . . . . . 2 . . . . . . . . . . . Recycler 3 | . . . . . 1 . . 1 . . . . . 1 . . Operator 2 | . . . . . . . . 1 . . . 1 . . . . Watcher 4 | . . . . . . . . 2 . . . . . 2 . . Swarmer 26 | . 2 6 . . 3 . 6 2 3 . . . 1 1 2 . Grunt 30 | . . 6 . . 4 . . 3 10 . . 4 . 2 . 1 Brawler 1 | . . . . . . . . . . . . . . 1 . . Duelist 3 | . . . . . 1 . 2 . . . . . . . . . Sentry 11 | . . 5 . . . . 2 2 . . . . . 2 . . Hunter 4 | . . . . . . . 1 1 1 . . . . . 1 . Programmer 7 | . . . . . . . . . . 1 . 2 . 4 . . Best Kill Streak 4 | . 2 4 1 . 4 . 3 3 3 1 . 4 1 2 1 1 Combat Bots Only 4 | . 2 4 1 . 3 . 3 3 3 1 . 4 1 2 1 1 Max Kills in Single Turn 2 | . 1 1 1 . 1 . 1 1 1 1 . 1 1 2 1 1 Gunslinging . | . . . . . . . . . . . . . . . . . Exploded 2 | . . . . . . . . . . . . . . 2 . . Melee 1 | . . . . . 1 . 1 1 1 . . . . . . 1 Uniques/NPCs Destroyed 1 | . . . 1 . . . . . . . . . . . . . YI-UF0 (-9/Mines) Combat | -11 -10 -9 -9 -9 -8 -8 -8 -8 -8 -7 -7 -7 -7 -7 -7 -6 -------- Run | Scr Mat Mat Min Exi Min Mat Gar Mat Gar Fac Was Fac Gar Fac Gar Fac Damage Taken 6820 | . 238 1108 221 . 525 . 966 779 731 . . 348 57 868 384 595 Core 1094 | . 36 160 . . 78 . 150 167 110 . . 89 30 179 28 67 Absorbed by Shields . | . . . . . . . . . . . . . . . . . Core Remaining (%) 60 | 100 85 . . . 40 . . . 22 . . . . . 53 . Volleys Fired 302 | . 4 61 4 . . . 18 . 59 6 1 42 6 73 24 4 Largest 2 | . 2 2 2 . . . 1 . 2 1 1 1 1 2 1 1 Hottest 120 | . 80 88 46 . . . 28 . 120 120 30 120 55 120 120 30 Shots Fired 381 | . 8 114 8 . . . 18 . 65 6 1 43 6 84 24 4 Gun 225 | . 8 114 8 . . . 18 . 24 . . 3 4 41 5 . Cannon 92 | . . . . . . . . . 32 1 . 18 . 36 5 . Launcher . | . . . . . . . . . . . . . . . . . Special 64 | . . . . . . . . . 9 5 1 22 2 7 14 4 Kinetic 131 | . . 91 8 . . . 18 . 14 . . . . . . . Thermal 120 | . . 23 . . . . . . 37 1 . 18 . 36 5 . Explosive . | . . . . . . . . . . . . . . . . . Electromagnetic 66 | . 8 . . . . . . . 5 . . 3 4 41 5 . Robot Hit Streak 27 | . 3 15 7 . . . 9 . 26 27 1 16 7 11 13 15 Robot Miss Streak 3 | . 2 3 . . . . 2 . 2 2 . 2 . 2 1 1 Penetration Max . | . . . . . . . . . . . . . . . . . Secondary Targets 3 | . . 3 . . . . . . . . . . . . . . Max Gunslinging Chain 1 | . . 1 . . . . . . . . . . . . . . Shots Hit Robots 334 | . 4 74 7 . 24 . 29 41 45 3 1 33 3 46 18 6 Core Hits 123 | . 2 28 4 . 13 . 13 12 17 1 . 7 1 18 5 2 Critical Hits 5 | . . 1 . . . . 2 1 1 . . . . . . . Critical Kills . | . . . . . . . . . . . . . . . . . Critical Parts Destroyed 5 | . . 1 . . . . 2 1 1 . . . . . . . Melee Attacks 127 | . . . . . 38 . 28 53 3 . . . . . . 5 Impact 2 | . . . . . 2 . . . . . . . . . . . Slashing 88 | . . . . . 6 . 26 53 3 . . . . . . . Piercing 37 | . . . . . 30 . 2 . . . . . . . . 5 Sneak Attacks 12 | . . . . . 5 . . 5 . . . . . . . 2 Combat Hostiles 2 | . . . . . . . . . . . . . . . . 2 Follow-up Attacks 13 | . . . . . 4 . 2 7 . . . . . . . . Damage Inflicted 9115 | . 55 1088 110 . 1007 . 813 1734 1425 41 . 737 12 1762 146 185 Guns 2360 | . 55 1088 110 . . . 277 . 332 . . 37 12 416 33 . Cannons 2975 | . . . . . . . . . 1014 41 . 700 . 1107 113 . Explosions 239 | . . . . . . . . . . . . . . 239 . . Melee 3534 | . . . . . 1007 . 536 1734 72 . . . . . . 185 Ramming 7 | . . . . . . . . . 7 . . . . . . . Kinetic 1385 | . . 806 110 . . . 277 . 192 . . . . . . . Thermal 3502 | . . 282 . . . . . . 1089 41 . 700 . 1277 113 . Explosive 69 | . . . . . . . . . . . . . . 69 . . Electromagnetic 618 | . 55 . . . . . . . 65 . . 37 12 416 33 . Impact 44 | . . . . . 44 . . . . . . . . . . . Slashing 2520 | . . . . . 213 . 501 1734 72 . . . . . . . Piercing 970 | . . . . . 750 . 35 . . . . . . . . 185 Highest Corruption 12 | . . . . . . . . . . . . 6 6 12 12 . Average Corruption 9 | . . . . . . . . . . . . 5 6 9 12 . Corruption Purged . | . . . . . . . . . . . . . . . . . Effects 141 | . . . . . . . . . . . . 19 5 79 38 . Message Errors 31 | . . . . . . . . . . . . 8 2 11 10 . Matter Fused 29 | . . . . . . . . . . . . 3 1 13 12 . Heat Flow Errors 15 | . . . . . . . . . . . . 3 . 10 2 . Energy Discharges 11 | . . . . . . . . . . . . 1 1 8 1 . Data Loss (minor) 10 | . . . . . . . . . . . . 1 . 6 3 . Data Loss (major) 3 | . . . . . . . . . . . . 1 1 . 1 . Misfires 6 | . . . . . . . . . . . . 1 . 5 . . Alerts 3 | . . . . . . . . . . . . . . 3 . . Misdirections 18 | . . . . . . . . . . . . . . 12 6 . Targeting Errors 14 | . . . . . . . . . . . . 1 . 10 3 . Weapon Failures 1 | . . . . . . . . . . . . . . 1 . . Overload Shots . | . . . . . . . . . . . . . . . . . Overflow Damage 652 | . . . . . 121 . . 189 54 . . 120 . 168 . . Projectiles 337 | . . . . . . . . . 54 . . 120 . 163 . . Explosions 5 | . . . . . . . . . . . . . . 5 . . Melee 310 | . . . . . 121 . . 189 . . . . . . . . Knockbacks . | . . . . . . . . . . . . . . . . . Impact . | . . . . . . . . . . . . . . . . . Kinetic . | . . . . . . . . . . . . . . . . . Secondary . | . . . . . . . . . . . . . . . . . Self-Inflicted Damage . | . . . . . . . . . . . . . . . . . Shots . | . . . . . . . . . . . . . . . . . Rammed 1 | . . 1 . . . . . . . . . . . . . . Targets Rammed 2 | . . 1 . . . . . . 1 . . . . . . . Kicked 1 | . . . . . . . . . 1 . . . . . . . Crushed . | . . . . . . . . . . . . . . . . . Highest Temperature 524 | . 54 201 . . 7 . . . 372 32 5 524 . 404 262 11 Average Temperature 107 | . 25 68 . . 6 . . . 120 11 5 142 . 116 70 4 Received Heat Transfer 1710 | . 57 411 . . 207 . 36 171 342 . . 135 . 219 114 18 Effects 6 | . . . . . . . . . 1 . . 2 . 3 . . Shutdowns 2 | . . . . . . . . . 1 . . 1 . . . . Interference 4 | . . . . . . . . . . . . 1 . 3 . . Siege Activations . | . . . . . . . . . . . . . . . . . Robots Corrupted 2 | . . . . . . . . . . . . . . 2 . . Combat Hostiles 2 | . . . . . . . . . . . . . . 2 . . Parts Fried 7 | . . . . . . . . . . . . 1 . 6 . . Impact Corruptions . | . . . . . . . . . . . . . . . . . Robots Melted 2 | . . . . . . . . . . . . 1 . 1 . . Combat Hostiles 2 | . . . . . . . . . . . . 1 . 1 . . Parts Melted 19 | . . 1 . . . . . . 7 . . 5 . 6 . . Heat Transferred 6489 | . . 666 . . . . . . 1865 80 . 1440 . 2280 158 . Parts Sabotaged . | . . . . . . . . . . . . . . . . . Parts Stolen . | . . . . . . . . . . . . . . . . . Parts Stripped . | . . . . . . . . . . . . . . . . . Power Chain Reactions 1 | . . . . . . . . . . . . . . 1 . . Missiles Intercepted . | . . . . . . . . . . . . . . . . . Alert | -11 -10 -9 -9 -9 -8 -8 -8 -8 -8 -7 -7 -7 -7 -7 -7 -6 ------- Run | Scr Mat Mat Min Exi Min Mat Gar Mat Gar Fac Was Fac Gar Fac Gar Fac Peak Influence 700 | . 80 362 141 . 130 14 414 324 700 412 144 135 146 340 516 311 Initial 367 | . . 25 141 . . 14 9 201 114 367 144 100 66 76 81 270 Average 193 | . 55 132 106 . 58 14 236 207 421 371 144 40 94 162 320 215 Maximum Alert Level 3 | . . 1 . . . . 2 1 3 2 . . . 1 2 1 Low Security (%) 59 | 100 100 73 100 . 100 100 47 45 12 . 100 100 100 65 16 52 Level 1 29 | . . 26 . . . . 30 54 33 95 . . . 34 54 47 Level 2 10 | . . . . . . . 22 . 50 4 . . . . 28 . Level 3 . | . . . . . . . . . 3 . . . . . . . Level 4 . | . . . . . . . . . . . . . . . . . Level 5 . | . . . . . . . . . . . . . . . . . High Security . | . . . . . . . . . . . . . . . . . Max Security . | . . . . . . . . . . . . . . . . . Squads Dispatched 17 | . . 1 1 . . . . 3 . 1 . 5 . 6 . . Investigation 5 | . . . 1 . . . . 1 . . . 1 . 2 . . Extermination 7 | . . . . . . . . . . 1 . 2 . 4 . . Reinforcement 5 | . . 1 . . . . . 2 . . . 2 . . . . Assault . | . . . . . . . . . . . . . . . . . Garrison . | . . . . . . . . . . . . . . . . . Intercept . | . . . . . . . . . . . . . . . . . Construction Impeded . | . . . . . . . . . . . . . . . . . Haulers Reinforced 1 | . . . . . . . . . . . . 1 . . . . Stealth | -11 -10 -9 -9 -9 -8 -8 -8 -8 -8 -7 -7 -7 -7 -7 -7 -6 --------- Run | Scr Mat Mat Min Exi Min Mat Gar Mat Gar Fac Was Fac Gar Fac Gar Fac Distress Signals 9 | . . 2 . . . . . 3 . . . 2 . 2 . . Communications Jammed . | . . . . . . . . . . . . . . . . . Distress Signals . | . . . . . . . . . . . . . . . . . Times Spotted 182 | . 11 22 1 . 13 . 13 22 34 2 . 22 3 20 13 6 Peak Tracking Total 7 | . 7 3 1 . 3 . 5 4 7 1 . 7 3 4 3 3 Tactical Retreats 25 | . . . . . 4 . 2 2 11 . . 3 . 3 . . Traps | -11 -10 -9 -9 -9 -8 -8 -8 -8 -8 -7 -7 -7 -7 -7 -7 -6 ------- Run | Scr Mat Mat Min Exi Min Mat Gar Mat Gar Fac Was Fac Gar Fac Gar Fac Traps Triggered 17 | . . . . . . . 4 2 4 1 . 1 4 . 1 . Indirectly . | . . . . . . . . . . . . . . . . . Trap Hack Attempts . | . . . . . . . . . . . . . . . . . Triggered . | . . . . . . . . . . . . . . . . . Disarmed . | . . . . . . . . . . . . . . . . . Reprogrammed . | . . . . . . . . . . . . . . . . . Reused . | . . . . . . . . . . . . . . . . . Traps Extracted . | . . . . . . . . . . . . . . . . . Installed . | . . . . . . . . . . . . . . . . . Triggered . | . . . . . . . . . . . . . . . . . Machines | -11 -10 -9 -9 -9 -8 -8 -8 -8 -8 -7 -7 -7 -7 -7 -7 -6 ---------- Run | Scr Mat Mat Min Exi Min Mat Gar Mat Gar Fac Was Fac Gar Fac Gar Fac Machines Disabled 18 | . . . . . . . 3 . 4 . . . 2 6 3 . Max in Single Turn 2 | . . . . . . . 1 . 1 . . . 1 2 1 . Garrison Relay 12 | . . . . . . . 3 . 4 . . . 2 . 3 . Machines Sabotaged . | . . . . . . . . . . . . . . . . . Garrisons Compromised . | . . . . . . . . . . . . . . . . . Overloaded Fab Kills 3 | . . . . . . . . . . . . . . 3 . . Fab Network Shutdowns . | . . . . . . . . . . . . . . . . . Hacking | -11 -10 -9 -9 -9 -8 -8 -8 -8 -8 -7 -7 -7 -7 -7 -7 -6 --------- Run | Scr Mat Mat Min Exi Min Mat Gar Mat Gar Fac Was Fac Gar Fac Gar Fac Machines Accessed 13 | . . 3 1 1 . 1 . 1 . . . 1 . 4 . 1 Terminals 4 | . . 3 . . . . . . . . . . . . . 1 Fabricators 2 | . . . . . . . . . . . . . . 2 . . Repair Stations 1 | . . . . . . . . . . . . . . 1 . . Recycling Units . | . . . . . . . . . . . . . . . . . Scanalyzers . | . . . . . . . . . . . . . . . . . Garrison Access 4 | . . . . . . 1 . 1 . . . 1 . 1 . . Total Hacks 20 | . . 6 1 1 . 2 . 2 . . . 1 . 6 . 1 Successful 15 | . . 5 1 1 . 1 . 2 . . . 1 . 4 . . Failed 4 | . . . . . . 1 . . . . . . . 2 . 1 Catastrophic 1 | . . . . . . . . . . . . . . 1 . . Database Lockouts 1 | . . 1 . . . . . . . . . . . . . . Manual 6 | . . 4 . 1 . . . . . . . . . 1 . . Terminals 7 | . . 6 . . . . . . . . . . . . . 1 Fabricators 3 | . . . . . . . . . . . . . . 3 . . Repair Stations 2 | . . . . . . . . . . . . . . 2 . . Recycling Units . | . . . . . . . . . . . . . . . . . Scanalyzers . | . . . . . . . . . . . . . . . . . Garrison Access 6 | . . . . . . 2 . 2 . . . 1 . 1 . . Terminal Hacks 7 | . . 5 1 1 . . . . . . . . . . . . Robot Analysis 4 | . . 4 . . . . . . . . . . . . . . Open Door 1 | . . . 1 . . . . . . . . . . . . . Dispatch Records 1 | . . 1 . . . . . . . . . . . . . . EX-Prototype ID Bank 1 | . . . . 1 . . . . . . . . . . . . Fabricator Hacks . | . . . . . . . . . . . . . . . . . Repair Station Hacks 2 | . . . . . . . . . . . . . . 2 . . Scan Component 1 | . . . . . . . . . . . . . . 1 . . Repair 1 | . . . . . . . . . . . . . . 1 . . Recycling Unit Hacks . | . . . . . . . . . . . . . . . . . Scanalyzer . | . . . . . . . . . . . . . . . . . Garrison Access Hacks 5 | . . . . . . 1 . 2 . . . 1 . 1 . . Unlock Access 4 | . . . . . . 1 . 1 . . . 1 . 1 . . Coupler Status 1 | . . . . . . . . 1 . . . . . . . . Unauthorized Hacks 1 | . . . . . . . . . . . . . . 1 . . Terminals . | . . . . . . . . . . . . . . . . . Fabricators 1 | . . . . . . . . . . . . . . 1 . . Overload 1 | . . . . . . . . . . . . . . 1 . . Repair Stations . | . . . . . . . . . . . . . . . . . Recycling Units . | . . . . . . . . . . . . . . . . . Scanalyzers . | . . . . . . . . . . . . . . . . . Garrison Access . | . . . . . . . . . . . . . . . . . Data Cores Recovered 1 | . . . . . . . . . . . . 1 . . . . Used . | . . . . . . . . . . . . . . . . . Hacking Detections 6 | . . 1 . . . 1 . 1 . . . 1 . 1 . 1 Full Trace Events 1 | . . . . . . . . . . . . . . 1 . . Feedback Events 1 | . . . . . . . . . . . . . . 1 . . Corruption 1 | . . . . . . . . . . . . . . 1 . . Feedback Blocked . | . . . . . . . . . . . . . . . . . Robot Schematics Acquired . | . . . . . . . . . . . . . . . . . Robots Built . | . . . . . . . . . . . . . . . . . Matter . | . . . . . . . . . . . . . . . . . Time . | . . . . . . . . . . . . . . . . . Total Robot Build Rating . | . . . . . . . . . . . . . . . . . Part Schematics Acquired . | . . . . . . . . . . . . . . . . . Parts Built . | . . . . . . . . . . . . . . . . . Matter . | . . . . . . . . . . . . . . . . . Time . | . . . . . . . . . . . . . . . . . Total Part Build Rating . | . . . . . . . . . . . . . . . . . Parts Repaired 1 | . . . . . . . . . . . . . . 1 . . Time 80 | . . . . . . . . . . . . . . 80 . . Parts Recycled . | . . . . . . . . . . . . . . . . . Recycled Matter . | . . . . . . . . . . . . . . . . . Retrieved Matter . | . . . . . . . . . . . . . . . . . Retrieved Components . | . . . . . . . . . . . . . . . . . Parts Scanalyzed . | . . . . . . . . . . . . . . . . . Part Schematics Acquired . | . . . . . . . . . . . . . . . . . Parts Damaged . | . . . . . . . . . . . . . . . . . Bothacking | -11 -10 -9 -9 -9 -8 -8 -8 -8 -8 -7 -7 -7 -7 -7 -7 -6 ------------ Run | Scr Mat Mat Min Exi Min Mat Gar Mat Gar Fac Was Fac Gar Fac Gar Fac Used RIF Installer 4 | . . . . . . . 1 . 1 . . . 1 . 1 . Signal Jammer 1 | . . . . . . . . . . . . . 1 . . . Zone Cloak 1 | . . . . . . . . . . . . . . . 1 . Program Shield 1 | . . . . . . . . . 1 . . . . . . . Robots Hacked 34 | . . . . . . . . . 7 1 . 11 2 3 7 3 Non-combat 12 | . . . . . . . . . . 1 . 8 . 1 . 2 Combat 22 | . . . . . . . . . 7 . . 3 2 2 7 1 Robot Hacks Applied 43 | . . . . . . . . . 7 2 . 15 2 5 8 4 parse_system 1 | . . . . . . . . . . . . . . . 1 . generate_echo 1 | . . . . . . . . . . . . 1 . . . . hold_bot 1 | . . . . . . . . . . . . 1 . . . . map_walls 1 | . . . . . . . . . . . . 1 . . . . drop_inventory 2 | . . . . . . . . . . . . 1 . . . 1 locate_stockpiles 1 | . . . . . . . . . . . . 1 . . . . purge_threat 3 | . . . . . . . . . . . . 2 . . . 1 locate_traps 1 | . . . . . . . . . . . . 1 . . . . block_reporting 3 | . . . . . . . . . . . . 2 . . . 1 map_route 2 | . . . . . . . . . . 1 . . . 1 . . mark_security 1 | . . . . . . . . . . 1 . . . . . . relay_feed 1 | . . . . . . . . . . . . 1 . . . . find_garrison 1 | . . . . . . . . . . . . . . 1 . . spike_heat 1 | . . . . . . . . . 1 . . . . . . . overload_power 2 | . . . . . . . . . . . . 1 . 1 . . reboot_system 1 | . . . . . . . . . . . . . . . . 1 overwrite_iff 10 | . . . . . . . . . 4 . . . 2 1 3 . formatsys_high 10 | . . . . . . . . . 2 . . 3 . 1 4 . Relay Couplers Released 47 | . . . . . . . 11 . 18 . . . 9 . 9 . Machine Destruction 47 | . . . . . . . 11 . 18 . . . 9 . 9 . Attached 18 | . . . . . . . . . 3 1 . 3 4 1 6 . Robots Rewired 1 | . . . . . . . . . . . . . . . 1 . Allies Hacked . | . . . . . . . . . . . . . . . . . Hacks Repelled . | . . . . . . . . . . . . . . . . . Allies | -11 -10 -9 -9 -9 -8 -8 -8 -8 -8 -7 -7 -7 -7 -7 -7 -6 -------- Run | Scr Mat Mat Min Exi Min Mat Gar Mat Gar Fac Was Fac Gar Fac Gar Fac Total Allies 21 | . . . . . . . . . 6 . . 3 2 2 8 . Largest Group 4 | . . . . . . . . . 2 . . 2 1 1 4 4 Highest-Rated Group 96 | . . . . . . . . . 32 . . 32 12 32 96 92 Highest-Rated Ally 32 | . . . . . . . . . 16 . . 21 12 32 32 32 Total Orders 6 | . . . . . . . . . . . . 1 . . 4 1 STAY 2 | . . . . . . . . . . . . . . . 1 1 ROAM 1 | . . . . . . . . . . . . 1 . . . . FOLLOW 2 | . . . . . . . . . . . . . . . 2 . AID 1 | . . . . . . . . . . . . . . . 1 . Ally Attacks 73 | . . . . . . . . . 24 . . 8 3 4 34 . Total Damage 1646 | . . . . . . . . . 287 . . 119 40 30 1170 . Kills 11 | . . . . . . . . . . . . . . 1 10 . Allies Corrupted . | . . . . . . . . . . . . . . . . . Allies Melted . | . . . . . . . . . . . . . . . . . Intel | -11 -10 -9 -9 -9 -8 -8 -8 -8 -8 -7 -7 -7 -7 -7 -7 -6 ------- Run | Scr Mat Mat Min Exi Min Mat Gar Mat Gar Fac Was Fac Gar Fac Gar Fac Robot Analysis Total 4 | . . 4 . . . . . . . . . . . . . . Derelict Logs Recovered 1 | . . . 1 . . . . . . . . . . . . . Drone Launches . | . . . . . . . . . . . . . . . . . Drone Recoveries . | . . . . . . . . . . . . . . . . . Exploration | -11 -10 -9 -9 -9 -8 -8 -8 -8 -8 -7 -7 -7 -7 -7 -7 -6 ------------- Run | Scr Mat Mat Min Exi Min Mat Gar Mat Gar Fac Was Fac Gar Fac Gar Fac Turns Passed 10824 | 64 93 776 528 294 1032 10 850 1018 1194 357 80 1145 190 1852 952 389 Spaces Moved 8040 | 40 61 419 413 236 680 9 442 550 834 248 141 1043 207 1782 640 295 Core 20 | 15 . . . . . . . 4 . . . . . 1 . . Treads 477 | . . . . . . . . . . . . . . 349 128 . Legs 4688 | 25 61 419 413 236 680 9 442 546 834 216 . . . . 512 295 Wheels . | . . . . . . . . . . . . . . . . . Hover 2855 | . . . . . . . . . . 32 141 1043 207 1432 . . Flight . | . . . . . . . . . . . . . . . . . Fastest Speed 48 | 50 120 120 120 120 120 120 120 120 120 56 56 52 52 48 120 120 Average Speed 101 | 135 130 129 120 120 120 120 120 123 120 113 56 56 52 77 134 120 Slowest Speed 400 | 200 150 150 120 120 120 120 120 200 120 120 56 116 52 400 160 120 Overloaded Moves . | . . . . . . . . . . . . . . . . . Propulsion Burnouts . | . . . . . . . . . . . . . . . . . Robots Hopped . | . . . . . . . . . . . . . . . . . Cave-ins Triggered . | . . . . . . . . . . . . . . . . . Exploration Rate (%) 44 | 4 20 47 80 60 96 2 67 52 63 9 75 36 42 28 71 7 Regions Visited 16 Branch Regions 3 Pre-discovered Areas . | . . . . . . . . . . . . . . . . . Known Exits Taken 4 | . . . . . . 1 . 1 . . . 1 . 1 . . Unknown Exits Taken 6 | 1 1 1 1 1 1 . . . . . . . . . . . Scrap Searched 2 | . . . 1 . 1 . . . . . . . . . . . Spaces Dug 4 | . . . . . 2 . . 1 . . . . . 1 . . Terrain Destroyed 118 | . . . . . 2 . . 1 . . . . . 115 . . Melee 3 | . . . . . 2 . . 1 . . . . . . . . Projectile 2 | . . . . . . . . . . . . . . 2 . . AOE 113 | . . . . . . . . . . . . . . 113 . . Terrain Rammed . | . . . . . . . . . . . . . . . . . Walls Destroyed . | . . . . . . . . . . . . . . . . . Machines Disabled . | . . . . . . . . . . . . . . . . . Actions | -11 -10 -9 -9 -9 -8 -8 -8 -8 -8 -7 -7 -7 -7 -7 -7 -6 --------- Run | Scr Mat Mat Min Exi Min Mat Gar Mat Gar Fac Was Fac Gar Fac Gar Fac Total 10205 | 47 66 532 439 247 840 8 704 821 975 320 141 1567 287 2180 713 318 Wait 1363 | . . 15 2 . 117 . 179 214 14 49 . 454 8 286 22 3 Move 8022 | 39 60 419 412 235 679 8 440 549 832 248 140 1042 205 1781 638 295 Hop . | . . . . . . . . . . . . . . . . . Pick Up 82 | 2 . 11 4 9 . . 14 2 17 . . 6 6 3 6 2 Fast Attach 60 | 5 1 10 2 1 5 . 4 6 3 3 . 5 . 8 4 3 Attach 27 | 1 . 1 . . . . 5 1 5 1 . 4 1 3 3 2 Detach 5 | . . . . . . . 1 . . 1 . 2 . . 1 . Swap 70 | . . 7 6 . 4 . 2 3 11 6 . 5 4 16 5 1 Drop 86 | . 1 8 9 2 1 . 4 4 21 6 . 7 5 10 5 3 Fire 302 | . 4 61 4 . . . 18 . 59 6 1 42 6 73 24 4 Melee 110 | . . . . . 34 . 26 42 3 . . . . . . 5 Ram . | . . . . . . . . . . . . . . . . . Kick 1 | . . . . . . . . . 1 . . . . . . . Crush . | . . . . . . . . . . . . . . . . . Escape Stasis 77 | . . . . . . . 11 . 9 . . . 52 . 5 . Rewire . | . . . . . . . . . . . . . . . . . Trap . | . . . . . . . . . . . . . . . . . Miscellaneous . | . . . . . . . . . . . . . . . . . Route ------- -11/Scrapyard -10/Materials -9/Materials (discovered 4 exits: *Mat / *Min / [*Sto x2]) -9/Mines (discovered 2 exits: *Mat / *Exi) -9/Exiles (discovered 2 exits: [*Min x2]) -8/Mines (discovered 2 exits: *Mat x2) -8/Materials -8/Garrison (discovered 2 exits: *Mat x2) -8/Materials (discovered 3 exits: [*Fac x2] / Gar) -8/Garrison (discovered 2 exits: [*Fac x2]) -7/Factory -7/Waste -7/Factory (discovered 3 exits: *Fac / *Low / Gar) -7/Garrison -7/Factory (discovered 3 exits: *Low x2 / Gar) -7/Garrison (discovered 3 exits: *Fac x3) -6/Factory History --------- Turn | Location | Event 36 | -11/Scrapyard | Discovered new exit (range 14) 65 | -11/Scrapyard | Entered Materials 136 | -10/Materials | Discovered new exit (range 15) 158 | -10/Materials | Entered another Materials area 158 | -9/Materials | Evolved 2 slots: Propulsion x2 185 | -9/Materials | Discovered new exit (range 7) 304 | -9/Materials | Build established: Mutant 375 | -9/Materials | Discovered new exit (range 7) 471 | -9/Materials | Discovered new exit (range 4) 653 | -9/Materials | Central database locked down 897 | -9/Materials | Build established: Scavenger-Mutant 911 | -9/Materials | Discovered new exit (range 15) 934 | -9/Materials | Entered Mines 940 | -9/Mines | Learned Materials security intel 987 | -9/Mines | Found a damaged Exp. Sensor Array with a note attached 989 | -9/Mines | Found Prototype Device 1024 | -9/Mines | Destroyed YI-UF0 1137 | -9/Mines | Found a hidden stash of uninstalled traps 1184 | -9/Mines | Met a Derelict shopkeep closing up shop 1222 | -9/Mines | Identified Exp. Sensor Array 1401 | -9/Mines | Discovered new exit (range 3) 1456 | -9/Mines | Deemed a non-threat by the Exiles lab entrance 1457 | -9/Mines | Discovered new exit (range 5) 1462 | -9/Mines | Entered Exiles 1482 | -9/Exiles | Discovered new exit (range 15) 1495 | -9/Exiles | Met 8R-AWN 1513 | -9/Exiles | Met EX-HEX 1546 | -9/Exiles | Met EX-BIN 1561 | -9/Exiles | Aligned with FarCom system 1562 | -9/Exiles | Given EX-Vault access code 1597 | -9/Exiles | Opened EX-Vault 1607 | -9/Exiles | Found Lightpack 2.0 1630 | -9/Exiles | Found Latent Energy Streamer 1640 | -9/Exiles | Found Gui. Plasma Cannon 1666 | -9/Exiles | Warned to stay clear of 0b10 Research branches 1704 | -9/Exiles | Met EX-DEC 1746 | -9/Exiles | Discovered new exit (range 10) 1756 | -9/Exiles | Stole three prototypes: Lightpack 2.0, Latent Energy Streamer, Gui. Plasma Cannon 1756 | -9/Exiles | Entered Mines 1894 | -8/Mines | Discovered new exit (range 6) 2112 | -8/Mines | Discovered new exit (range 10) 2197 | -8/Mines | Core integrity fell below 50% 2788 | -8/Mines | Entered Materials 2788 | -8/Materials | Evolved 2 slots: Utility x2 2797 | -8/Materials | Identified exit to Garrison 2798 | -8/Materials | Entered Garrison 2804 | -8/Garrison | Installed Relay Interface Framework 2936 | -8/Garrison | Triggered checkpoint 3012 | -8/Garrison | Lost 4 parts (2n1u1w) 3023 | -8/Garrison | Garrison Relay disabled 3133 | -8/Garrison | Discovered new exit (range 13) 3194 | -8/Garrison | Triggered checkpoint 3225 | -8/Garrison | Garrison Relay disabled 3378 | -8/Garrison | Triggered checkpoint 3438 | -8/Garrison | Triggered checkpoint 3455 | -8/Garrison | Garrison Relay disabled 3541 | -8/Garrison | Build established: Bothacker-Mutant 3629 | -8/Garrison | Discovered new exit (range 13) 3648 | -8/Garrison | Entered Materials 4027 | -8/Materials | Discovered new exit (range 5) 4212 | -8/Materials | Lost 3 parts (1p2n) 4287 | -8/Materials | Core integrity fell below 50% 4465 | -8/Materials | Discovered new exit (range 5) 4664 | -8/Materials | Identified exit to Garrison 4666 | -8/Materials | Entered Garrison 4698 | -8/Garrison | Triggered checkpoint 4727 | -8/Garrison | Garrison Relay disabled 4980 | -8/Garrison | Triggered checkpoint 5102 | -8/Garrison | Discovered new exit (range 15) 5131 | -8/Garrison | Expanded RIF knowledge: Program Shield 5174 | -8/Garrison | Triggered checkpoint 5221 | -8/Garrison | Garrison Relay disabled 5298 | -8/Garrison | Triggered checkpoint 5347 | -8/Garrison | Discovered new exit (range 9) 5404 | -8/Garrison | Triggered checkpoint 5416 | -8/Garrison | Garrison Relay disabled 5551 | -8/Garrison | Garrison Relay disabled 5612 | -8/Garrison | Triggered checkpoint 5624 | -8/Garrison | Triggered checkpoint 5628 | -8/Garrison | Triggered checkpoint 5860 | -8/Garrison | Entered Factory 5860 | -7/Factory | Evolved 2 slots: Utility x2 5862 | -7/Factory | FarCom data flow suspended 6217 | -7/Factory | Sucked down chute 6217 | -7/Factory | Entered Waste 6217 | -7/Waste | The area was eerily silent 6289 | -7/Waste | Discovered new exit (range 15) 6297 | -7/Waste | Identified exit to Factory 6297 | -7/Waste | Entered Factory 6464 | -7/Factory | Discovered new exit (range 8) 6469 | -7/Factory | Identified exit to Factory 7342 | -7/Factory | Discovered new exit (range 12) 7441 | -7/Factory | Identified exit to Garrison 7442 | -7/Factory | Entered Garrison 7462 | -7/Garrison | Triggered checkpoint 7481 | -7/Garrison | Garrison Relay disabled 7556 | -7/Garrison | Triggered checkpoint 7568 | -7/Garrison | Discovered new exit (range 9) 7573 | -7/Garrison | Identified exit to Factory 7577 | -7/Garrison | Expanded RIF knowledge: Signal Jamming 7588 | -7/Garrison | Triggered checkpoint 7607 | -7/Garrison | Garrison Relay disabled 7632 | -7/Garrison | Entered Factory 7680 | -7/Factory | Discovered new exit (range 9) 7684 | -7/Factory | Identified exit to Lower Caves 8186 | -7/Factory | System corruption reached 10% 8379 | -7/Factory | Repaired Exp. Sensor Array 8575 | -7/Factory | Lost 3 parts (2n1w) 8867 | -7/Factory | Lost 4 parts (2n2w) 9336 | -7/Factory | Discovered exit to Lower Caves (range 91) 9475 | -7/Factory | Identified exit to Garrison 9484 | -7/Factory | Entered Garrison 9484 | -7/Garrison | Accompanied by 1 ally 9518 | -7/Garrison | Triggered checkpoint 9546 | -7/Garrison | Garrison Relay disabled 9698 | -7/Garrison | Triggered checkpoint 9706 | -7/Garrison | Triggered checkpoint 9809 | -7/Garrison | Triggered checkpoint 9824 | -7/Garrison | Discovered exit to Factory (range 13) 9976 | -7/Garrison | Discovered exit to Factory (range 10) 10081 | -7/Garrison | Discovered exit to Factory (range 15) 10110 | -7/Garrison | Expanded RIF knowledge: Zone Cloak 10140 | -7/Garrison | Triggered checkpoint 10165 | -7/Garrison | Garrison Relay disabled 10266 | -7/Garrison | Triggered checkpoint 10322 | -7/Garrison | Triggered checkpoint 10361 | -7/Garrison | Garrison Relay disabled 10403 | -7/Garrison | Build established: Botlord-Mutant 10436 | -7/Garrison | Entered Factory 10436 | -6/Factory | Accompanied by 4 allies 10436 | -6/Factory | Evolved 2 slots: Utility x2 10825 | -6/Factory | Self-destructed Last Messages --------------- >>purge_threat Purged threat record, alert level lowered. 10649_ Acquired Carbon-fiber Leg. 10732_ Connecting with Fabricator... 10757_ Penetrated by Slug. 10804_ Lgt. Angular Momentum Engine destroyed. 10807_ Penetrated by Slug. 10807_ Gravmag System destroyed. 10811_ Penetrated by Slug. 10811_ Carbon-fiber Leg destroyed. 10814_ Penetrated by Slug. 10817_ Slug penetrates Wall. 10817_ Penetrated by Slug. 10819_ U-05 Engineer lays Concrete. 10823_ Slug penetrates H-66 Slayer. 10823_ H-66 Slayer destroyed. 10825_ Penetrated by Slug. 10825_ Imp. Medium Armor Plating destroyed. 10825_ Penetrated by Slug. 10825_ Lightpack 2.0 destroyed. Map ----- +----------------------------------------------------+ | ?????????????????????????????????????????????????? | | ?????????????????????????????????????????????????? | | ?????????????????????????????????????????????????? | | ?????????????????????????????????????????????????? | | ?????????????????????????????????????????????????? | | ?????????????????????????????????????????????????? | | ?????????????????????????????????????????????????? | | ?????????????????????????????????????????????????? | | ?????????????????????????????????????????????????? | | ?????????????????????????????????????????????????? | | ????????????????????????????????????????? ???????? | | ####???????????????????????????????????? "??????? | | ###########?###########???????#+#???? "??????? | | # #?# """T""" #??????? ! ?? "??????? | | # #?# #?????? ?# ??? ?? | | # ! #?# #???# """ """ # """ ""?? | | # #?# #???# """ """ # """ """ | | # """ """ #?# """ """ #???# """ """ # """ """? | | # """ """ #?# """ """ #???# "" "" # ? | | # """ """ #?# """ """ #???? "" "" # ??? | | # #?# #?????? ??# #???? | | ######+#############+#############+##### #???? | | ! #???? | | u!|!!! #???? | | ]!|/!! #???? | | !!!@%[! h #???? | | /]![! h #???? | | ##### ###+####################+######+######## | | # # #???# # # | | "" # ]# """ """ """ #???# """" # # | | "" # ] # """ """ """ ????# """" # " " " " # | | """ # # """ """ """ ????# """" # " " " " + | | """ # # ??????#! """" # " " " " # | | """ # # """ """ """ ??????# """" # " " " " + | | # # """ """ """ ?????# """?? # " " " " # | | # # """ """ "?" ??????# ??????# " " " " # | | ##### #??? ?? ?????????# ???????# " " " " # | | ????# #??? ??????????????????????# " " " " # | | ##??# #???#####????????????????????# " " " " # | | ??# #?? ????????????????????#?? ? | | ?# #?? """???????????????????????? ? | | ?# #? """"??????????????????????? ? ? ? | | # #? """""?????????????????????? ? ? ? | | # # """""" #?????????????????? ? ? ? | | + # #????????????????????#?#?#? | | # + "" ??????????????????????????? | | # # "" ??????????????????????????? | | ?# + T" ??????????????????????????? | | ?#######? ""???????????????????????????? | | ?????????? ""???????????????????????????? | +----------------------------------------------------+ Best States ------------- Heat Dissipation 53 Energy Generation 18 Energy Capacity 290 Matter Stores 300 Matter Capacity 300 Sight Range 16 Robot Scan Range 30 Terrain Scan Density 10 Armor Coverage 225 Core Shielding 20 Weapon Shielding 66 Evasion (%) 55 Melee Accuracy 10 Recoil Reduction 2 Relay Coupler Types 105 Relay Coupler Value 4 Item Schematics ----------------- None Robot Schematics ------------------ None Fabricated ------------ Nothing Alien Tech Used ----------------- None Achievements -------------- None Challenges ------------ None Game ------ Seed ShieldAluminumCharger Manual? 0 Play Time 01:13:37 Cumulative 138.0 hours Start 2021.04.11 @ 12:53:54 End 2021.04.11 @ 19:39:25 Sessions 5 Manual Loads 0 Difficulty Rogue Special Mode None Game No. 309 Rogue 156 Adventurer 148 Explorer 5 Win Type - Total 3 Types 3/0/0/0/0/0/0/0/0 Lore% 66 Gallery% 74 Achievement% 57 Wizard Run 0 Options --------- ASCII 0 Keyboard 0 Movement Numpad Keybinds 0 Fullscreen 1 Font 18/CogNarrow Map View 76x50 Tactical HUD 1 Map Filters NONE Filters NONE Steam 1 RUN: 5ac2c0e1-c7b7-46fa-bc4d-4370a430c800